fUSD/lending_fUSD_20240712
["ID","MTS","AMOUNT","RATE_DAILY","PERIOD"]
[331882369,1720814768345,301.04679019,0.00011199,2]
[331882370,1720814768714,155.38783042,0.00011199,2]
[331882371,1720814798788,448.12,0.00010696,2]
[331882372,1720814820010,156.97678549,0.00011199,2]
[331882374,1720814829962,3393.88143666,0.00011199,2]
[331882377,1720814864954,297.74410483,0.00011199,2]
[331882378,1720814873266,789.45308619,0.00011199,2]
[331882383,1720814952531,159.23210026,0.00011199,2]
[331882384,1720814958627,386.68404747,0.00011199,2]
[331882404,1720815032971,-576.86,0.00012273,2]
[331882405,1720815032983,-1695.78104107,0.00012273,2]
[331882406,1720815032993,-1109.13,0.00012505,2]
[331882407,1720815033006,-150.0,0.000126,2]
[331882408,1720815033017,-500.0,0.0001264,2]
[331882409,1720815033026,-250.0,0.00012723,2]
[331882410,1720815033036,-1952.65,0.00012753,2]
[331882411,1720815033052,-1000.0,0.00012772,2]
[331882412,1720815033061,-250.0,0.0001279,2]
[331882413,1720815033072,-200.0,0.00012806,2]
[331882414,1720815033081,-300.0,0.00012831,2]
[331882415,1720815033091,-20554.7,0.00012832,2]
[331882416,1720815033101,-163.36,0.00012834,2]
[331882417,1720815033110,-150.0,0.00012902,2]
[331882418,1720815033120,-266.76,0.00012903,2]
[331882419,1720815033129,-499.99,0.00012903,2]
[331882420,1720815033138,-1144.68910501,0.00012903,2]
[331882425,1720815038385,-1015.57365664,0.00012903,2]
[331882426,1720815038398,-16906.54723835,0.00012903,2]
[331882427,1720815038407,-1742.55,0.00012903,2]
[331882428,1720815038417,-298.68,0.00012916,2]
[331882429,1720815038426,-448.12,0.0001296,2]
[331882430,1720815038436,-200.8,0.00012981,2]
[331882431,1720815038445,-167.3,0.00012981,2]
[331882432,1720815038454,-6231.58383565,0.00013128,2]
[331882433,1720815038463,-1500.0,0.00013128,2]
[331882434,1720815038473,-205.31,0.00013194,2]
[331882435,1720815038482,-1071.37125319,0.00013472,2]
[331882436,1720815038491,-177.75235281,0.00013516,2]
[331882437,1720815038500,-21961.556,0.00013675,2]
[331882438,1720815038509,-219.89,0.00013699,2]
[331882439,1720815038519,-611.24438,0.0001386,2]
[331882440,1720815038527,-268.22943612,0.00013876,2]
[331882441,1720815038536,-268.22943612,0.00013879,2]
[331882442,1720815038546,-268.22943612,0.00013881,2]
[331882443,1720815038555,-268.22943612,0.00013884,2]
[331882444,1720815038566,-268.22943612,0.00013887,2]
[331882445,1720815038576,-500.0,0.00013887,2]
[331882446,1720815038585,-500.0,0.00013888,2]
[331882447,1720815038594,-500.0,0.00013888,2]
[331882448,1720815038603,-173.9811603,0.00013889,2]
[331882449,1720815038613,-268.22943612,0.00013889,2]
[331882450,1720815038622,-268.22943612,0.00013892,2]
[331882451,1720815038631,-268.22943612,0.00013895,2]
[331882452,1720815038640,-268.22943612,0.00013897,2]
[331882453,1720815038650,-162.856364,0.00013898,2]
[331882455,1720815038658,-162.856364,0.00013898,2]
[331882457,1720815038667,-157.503432,0.00013898,2]
[331882459,1720815038677,-268.22943612,0.000139,2]
[331882461,1720815038686,-1915.0,0.000139,2]
[331882463,1720815038695,-500.0,0.00013976,2]
[331882465,1720815038704,-500.0,0.00013976,2]
[331882467,1720815038714,-500.0,0.00013976,2]
[331882468,1720815038723,-500.0,0.00013976,2]
[331882470,1720815038731,-500.0,0.00013976,2]
[331882472,1720815038740,-500.0,0.00013976,2]
[331882474,1720815038749,-500.0,0.00013976,2]
[331882476,1720815038759,-500.0,0.00013976,2]
[331882478,1720815038768,-500.0,0.00013976,2]
[331882480,1720815038777,-500.0,0.00013976,2]
[331882482,1720815038786,-500.0,0.00013976,2]
[331882484,1720815038795,-500.0,0.00013976,2]
[331882486,1720815038805,-500.0,0.00013976,2]
[331882488,1720815038815,-605.43,0.00013976,2]
[331882490,1720815038824,-500.0,0.00013976,2]
[331882492,1720815038833,-500.0,0.00013976,2]
[331882494,1720815038842,-500.0,0.00013976,2]
[331882496,1720815038851,-500.0,0.00013976,2]
[331882498,1720815038859,-500.0,0.00013976,2]
[331882500,1720815038869,-500.0,0.00013976,2]
[331882502,1720815038878,-500.0,0.00013976,2]
[331882503,1720815038887,-500.0,0.00013976,2]
[331882505,1720815038896,-500.0,0.00013976,2]
[331882507,1720815038905,-500.0,0.00013976,2]
[331882508,1720815038914,-500.0,0.00013976,2]
[331882510,1720815038924,-500.0,0.00013976,2]
[331882512,1720815038933,-500.0,0.00013976,2]
[331882514,1720815038942,-500.0,0.00013976,2]
[331882516,1720815038951,-500.0,0.00013976,2]
[331882518,1720815038960,-500.0,0.00013976,2]
[331882520,1720815038969,-370.07800391,0.00013976,2]
[331882522,1720815038978,-500.0,0.00013976,2]
[331882524,1720815038987,-500.0,0.00013976,2]
[331882526,1720815038999,-500.0,0.00013976,2]
[331882528,1720815039011,-500.0,0.00013976,2]
[331882529,1720815039020,-626.78,0.00013976,2]
[331882531,1720815039029,-500.0,0.00013976,2]
[331882533,1720815039038,-500.0,0.00013976,2]
[331882535,1720815039049,-500.0,0.00013976,2]
[331882537,1720815039058,-500.0,0.00013976,2]
[331882539,1720815039067,-551.44,0.00013976,2]
[331882541,1720815039078,-500.0,0.00013976,2]
[331882543,1720815039087,-543.26,0.00013976,2]
[331882545,1720815039096,-500.0,0.00013976,2]
[331882547,1720815039105,-596.28,0.00013976,2]
[331882549,1720815039114,-550.7,0.00013976,2]
[331882551,1720815039123,-500.0,0.00013976,2]
[331882553,1720815039131,-500.0,0.00013976,2]
[331882555,1720815039141,-500.0,0.00013976,2]
[331882556,1720815039150,-500.0,0.00013976,2]
[331882558,1720815039159,-329.15084648,0.00013976,2]
[331882560,1720815039168,-913.39,0.00013976,2]
[331882562,1720815039177,-500.0,0.00013976,2]
[331882564,1720815039186,-500.0,0.00013976,2]
[331882566,1720815039195,-421.77765941,0.00013976,2]
[331882568,1720815039203,-524.06,0.00013976,2]
[331882570,1720815039212,-500.0,0.00013976,2]
[331882572,1720815039222,-544.42,0.00013976,2]
[331882574,1720815039231,-500.0,0.00013976,2]
[331882576,1720815039239,-561.4,0.00013976,2]
[331882578,1720815039248,-500.0,0.00013976,2]
[331882580,1720815039257,-500.0,0.00013976,2]
[331882581,1720815039265,-754.35,0.00013976,2]
[331882583,1720815039274,-500.0,0.00013976,2]
[331882585,1720815039283,-578.22,0.00013976,2]
[331882599,1720815039387,-500.0,0.00013976,2]
[331882601,1720815039416,-500.0,0.00013976,2]
[331882603,1720815039425,-500.0,0.00013976,2]
[331882605,1720815039434,-500.0,0.00013976,2]
[331882607,1720815039444,-530.65,0.00013976,2]
[331882609,1720815039453,-864.72,0.00013976,2]
[331882611,1720815039462,-500.0,0.00013976,2]
[331882613,1720815039471,-500.0,0.00013976,2]
[331882615,1720815039480,-500.0,0.00013976,2]
[331882617,1720815039489,-546.81,0.00013976,2]
[331882619,1720815039498,-500.0,0.00013976,2]
[331882621,1720815039507,-500.0,0.00013976,2]
[331882622,1720815039516,-500.0,0.00013976,2]
[331882624,1720815039526,-500.0,0.00013976,2]
[331882626,1720815039535,-500.0,0.00013976,2]
[331882628,1720815039543,-500.0,0.00013976,2]
[331882630,1720815039552,-500.0,0.00013976,2]
[331882632,1720815039562,-500.0,0.00013976,2]
[331882634,1720815039571,-500.0,0.00013976,2]
[331882636,1720815039581,-500.0,0.00013976,2]
[331882638,1720815039590,-500.0,0.00013976,2]
[331882640,1720815039599,-592.41,0.00013976,2]
[331882642,1720815039609,-500.0,0.00013976,2]
[331882644,1720815039618,-841.9,0.00013976,2]
[331882646,1720815039628,-500.0,0.00013976,2]
[331882648,1720815039637,-500.0,0.00013976,2]
[331882650,1720815039646,-581.26,0.00013976,2]
[331882652,1720815039655,-500.0,0.00013976,2]
[331882654,1720815039665,-500.0,0.00013976,2]
[331882656,1720815039674,-500.0,0.00013976,2]
[331882658,1720815039684,-500.0,0.00013976,2]
[331882660,1720815039694,-500.0,0.00013976,2]
[331882661,1720815039703,-500.0,0.00013976,2]
[331882663,1720815039713,-500.0,0.00013976,2]
[331882665,1720815039723,-964.97,0.00013976,2]
[331882667,1720815039732,-500.0,0.00013976,2]
[331882669,1720815039742,-701.19,0.00013976,2]
[331882671,1720815039751,-500.0,0.00013976,2]
[331882673,1720815039760,-500.0,0.00013976,2]
[331882675,1720815039770,-650.73,0.00013976,2]
[331882677,1720815039779,-500.0,0.00013976,2]
[331882679,1720815039789,-500.0,0.00013976,2]
[331882681,1720815039798,-731.89,0.00013976,2]
[331882683,1720815039807,-500.0,0.00013976,2]
[331882685,1720815039816,-576.95,0.00013976,2]
[331882687,1720815039825,-500.0,0.00013976,2]
[331882689,1720815039835,-500.0,0.00013976,2]
[331882691,1720815039844,-500.0,0.00013976,2]
[331882693,1720815039853,-500.0,0.00013976,2]
[331882695,1720815039862,-500.0,0.00013976,2]
[331882697,1720815039871,-500.0,0.00013976,2]
[331882699,1720815039880,-841.77,0.00013976,2]
[331882701,1720815039890,-500.0,0.00013976,2]
[331882703,1720815039899,-558.06,0.00013976,2]
[331882704,1720815039909,-500.0,0.00013976,2]
[331882706,1720815039918,-457.23808756,0.00013976,2]
[331882709,1720815039932,-42.76191244,0.00013976,2]
[331882711,1720815039941,-500.0,0.00013976,2]
[331882713,1720815039950,-500.0,0.00013976,2]
[331882715,1720815039959,-206.28408304,0.00013976,2]
[331882717,1720815039971,-293.71591696,0.00013976,2]
[331882719,1720815039980,-500.0,0.00013976,2]
[331882721,1720815039989,-519.27,0.00013976,2]
[331882723,1720815040002,-651.86,0.00013976,2]
[331882725,1720815040011,-790.17,0.00013976,2]
[331882727,1720815040020,-520.11,0.00013976,2]
[331882729,1720815040029,-500.0,0.00013976,2]
[331882731,1720815040039,-500.0,0.00013976,2]
[331882732,1720815040048,-500.0,0.00013976,2]
[331882734,1720815040057,-575.12669761,0.00013976,2]
[331882736,1720815040067,-500.0,0.00013976,2]
[331882738,1720815040077,-500.0,0.00013976,2]
[331882740,1720815040086,-500.0,0.00013976,2]
[331882742,1720815040096,-500.0,0.00013976,2]
[331882744,1720815040105,-500.0,0.00013976,2]
[331882746,1720815040114,-521.15,0.00013976,2]
[331882748,1720815040123,-500.0,0.00013976,2]
[331882749,1720815040133,-500.0,0.00013976,2]
[331882751,1720815040142,-828.71,0.00013976,2]
[331882753,1720815040151,-500.0,0.00013976,2]
[331882755,1720815040161,-500.0,0.00013976,2]
[331882757,1720815040170,-500.0,0.00013976,2]
[331882759,1720815040179,-500.0,0.00013976,2]
[331882761,1720815040188,-500.0,0.00013976,2]
[331882763,1720815040197,-627.02,0.00013976,2]
[331882765,1720815040206,-500.0,0.00013976,2]
[331882766,1720815040216,-500.0,0.00013976,2]
[331882768,1720815040225,-500.0,0.00013976,2]
[331882770,1720815040234,-676.77,0.00013976,2]
[331882772,1720815040244,-500.0,0.00013976,2]
[331882774,1720815040253,-500.0,0.00013976,2]
[331882776,1720815040262,-500.0,0.00013976,2]
[331882778,1720815040272,-500.0,0.00013976,2]
[331882780,1720815040281,-500.0,0.00013976,2]
[331882782,1720815040290,-500.0,0.00013976,2]
[331882784,1720815040299,-500.0,0.00013976,2]
[331882785,1720815040308,-500.0,0.00013976,2]
[331882787,1720815040317,-500.0,0.00013976,2]
[331882789,1720815040327,-500.0,0.00013976,2]
[331882792,1720815040336,-500.0,0.00013976,2]
[331882795,1720815040345,-554.88,0.00013976,2]
[331882797,1720815040355,-500.0,0.00013976,2]
[331882799,1720815040364,-500.0,0.00013976,2]
[331882801,1720815040372,-500.0,0.00013976,2]
[331882802,1720815040382,-500.0,0.00013976,2]
[331882804,1720815040391,-500.0,0.00013976,2]
[331882806,1720815040400,-500.0,0.00013976,2]
[331882808,1720815040409,-500.0,0.00013976,2]
[331882810,1720815040419,-500.0,0.00013976,2]
[331882812,1720815040428,-531.16,0.00013976,2]
[331882814,1720815040438,-500.0,0.00013976,2]
[331882816,1720815040447,-529.33,0.00013976,2]
[331882818,1720815040456,-1516.15,0.00013976,2]
[331882820,1720815040465,-500.0,0.00013976,2]
[331882822,1720815040475,-500.0,0.00013976,2]
[331882824,1720815040484,-500.0,0.00013976,2]
[331882826,1720815040493,-500.0,0.00013976,2]
[331882828,1720815040502,-500.0,0.00013976,2]
[331882830,1720815040511,-500.0,0.00013976,2]
[331882832,1720815040521,-500.0,0.00013976,2]
[331882834,1720815040531,-500.0,0.00013976,2]
[331882836,1720815040540,-500.0,0.00013976,2]
[331882838,1720815040549,-500.0,0.00013976,2]
[331882840,1720815040558,-878.04,0.00013976,2]
[331882842,1720815040567,-943.3,0.00013976,2]
[331882844,1720815040577,-500.0,0.00013976,2]
[331882845,1720815040586,-390.77815228,0.00013976,2]
[331882848,1720815040599,-109.22184772,0.00013976,2]
[331882850,1720815040608,-500.0,0.00013976,2]
[331882852,1720815040618,-545.10815228,0.00013976,2]
[331882854,1720815040630,-764.12184772,0.00013976,2]
[331882856,1720815040639,-500.0,0.00013976,2]
[331882858,1720815040648,-541.17,0.00013976,2]
[331882860,1720815040657,-500.0,0.00013976,2]
[331882862,1720815040666,-535.96,0.00013976,2]
[331882864,1720815040675,-612.56,0.00013976,2]
[331882866,1720815040685,-918.66,0.00013976,2]
[331882868,1720815040694,-500.0,0.00013976,2]
[331882870,1720815040704,-500.0,0.00013976,2]
[331882872,1720815040714,-550.26,0.00013976,2]
[331882874,1720815040723,-500.0,0.00013976,2]
[331882875,1720815040732,-500.0,0.00013976,2]
[331882877,1720815040742,-735.46,0.00013976,2]
[331882879,1720815040751,-500.0,0.00013976,2]
[331882881,1720815040761,-500.0,0.00013976,2]
[331882883,1720815040770,-896.09,0.00013976,2]
[331882885,1720815040779,-500.0,0.00013976,2]
[331882887,1720815040798,-518.4,0.00013976,2]
[331882889,1720815040808,-500.0,0.00013976,2]
[331882891,1720815040817,-500.15,0.00013976,2]
[331882893,1720815040826,-549.35,0.00013976,2]
[331882895,1720815040835,-809.78,0.00013976,2]
[331882897,1720815040845,-500.0,0.00013976,2]
[331882899,1720815040854,-500.0,0.00013976,2]
[331882901,1720815040865,-500.0,0.00013976,2]
[331882903,1720815040874,-548.19,0.00013976,2]
[331882904,1720815040883,-500.0,0.00013976,2]
[331882906,1720815040896,-500.0,0.00013976,2]
[331882908,1720815040905,-500.0,0.00013976,2]
[331882910,1720815040915,-727.93,0.00013976,2]
[331882912,1720815040924,-500.0,0.00013976,2]
[331882914,1720815040934,-500.0,0.00013976,2]
[331882916,1720815040943,-602.83,0.00013976,2]
[331882918,1720815040952,-500.0,0.00013976,2]
[331882920,1720815040961,-500.0,0.00013976,2]
[331882922,1720815040970,-420.24212492,0.00013977,2]
[331882925,1720815040987,-108.97787508,0.00013977,2]
[331882926,1720815040997,-500.0,0.00013977,2]
[331882928,1720815041008,-69.48856388,0.00013977,2]
[331882930,1720815041019,-96.54547642,0.00013977,2]
[331882932,1720815041028,-500.0,0.00013977,2]
[331882934,1720815041037,-84.36472358,0.00013977,2]
[331882971,1720815041402,-209.54468271,0.00013516,2]
[331882973,1720815041411,-600.07527642,0.00013977,2]
[331882975,1720815041421,-692.84,0.00013977,2]
[331882977,1720815041431,-517.23,0.00013977,2]
[331882980,1720815041442,-869.19,0.00013977,2]
[331882982,1720815041452,-500.0,0.00013977,2]
[331882983,1720815041461,-500.0,0.00013977,2]
[331882985,1720815041471,-500.0,0.00013977,2]
[331882987,1720815041479,-601.62,0.00013977,2]
[331882989,1720815041489,-676.07,0.00013977,2]
[331882991,1720815041498,-828.6,0.00013977,2]
[331882993,1720815041508,-753.18,0.00013977,2]
[331882995,1720815041517,-500.0,0.00013977,2]
[331882997,1720815041526,-875.88,0.00013977,2]
[331882999,1720815041535,-810.04,0.00013977,2]
[331883001,1720815041544,-821.14,0.00013977,2]
[331883003,1720815041554,-500.0,0.00013977,2]
[331883005,1720815041563,-612.25,0.00013977,2]
[331883007,1720815041572,-560.63,0.00013977,2]
[331883008,1720815041581,-500.0,0.00013977,2]
[331883010,1720815041591,-500.0,0.00013977,2]
[331883012,1720815041600,-562.52,0.00013977,2]
[331883014,1720815041609,-500.0,0.00013977,2]
[331883016,1720815041618,-500.0,0.00013978,2]
[331883018,1720815041629,-500.0,0.00013979,2]
[331883020,1720815041638,-500.0,0.00013979,2]
[331883022,1720815041647,-500.0,0.00013979,2]
[331883023,1720815041656,-500.0,0.00013979,2]
[331883024,1720815041666,-500.0,0.00013979,2]
[331883025,1720815041675,-596.27,0.00013979,2]
[331883026,1720815041685,-458.66079249,0.00013979,2]
[331883027,1720815041694,-500.0,0.00013979,2]
[331883028,1720815041703,-500.0,0.00013979,2]
[331883029,1720815041712,-500.0,0.00013979,2]
[331883030,1720815041722,-500.0,0.00013979,2]
[331883031,1720815041731,-500.0,0.00013979,2]
[331883032,1720815041741,-500.0,0.00013979,2]
[331883033,1720815041750,-500.0,0.00013979,2]
[331883034,1720815041759,-500.0,0.00013979,2]
[331883035,1720815041769,-500.0,0.00013979,2]
[331883036,1720815041778,-500.0,0.00013979,2]
[331883037,1720815041787,-500.0,0.00013979,2]
[331883038,1720815041797,-500.0,0.00013979,2]
[331883039,1720815041806,-500.0,0.00013979,2]
[331883040,1720815041815,-500.0,0.00013979,2]
[331883041,1720815041824,-500.0,0.00013979,2]
[331883042,1720815041833,-500.0,0.00013979,2]
[331883043,1720815041843,-500.0,0.00013979,2]
[331883044,1720815041852,-500.0,0.00013979,2]
[331883045,1720815041862,-626.68,0.00013979,2]
[331883046,1720815041871,-500.0,0.00013979,2]
[331883048,1720815041881,-500.0,0.00013979,2]
[331883050,1720815041890,-500.0,0.00013979,2]
[331883052,1720815041900,-500.0,0.00013979,2]
[331883054,1720815041909,-500.0,0.00013979,2]
[331883056,1720815041919,-500.0,0.00013979,2]
[331883058,1720815041928,-500.0,0.00013979,2]
[331883060,1720815041937,-757.8,0.00013979,2]
[331883062,1720815041946,-500.0,0.00013979,2]
[331883064,1720815041956,-500.0,0.00013979,2]
[331883066,1720815041965,-500.0,0.00013979,2]
[331883068,1720815041975,-252.86063287,0.00013979,2]
[331883070,1720815041983,-155.81861335,0.00013979,2]
[331883072,1720815041994,-780.15,0.00013979,2]
[331883074,1720815042007,-500.0,0.00013979,2]
[331883076,1720815042017,-285.32053579,0.00013979,2]
[331883078,1720815042026,-500.0,0.00013979,2]
[331883080,1720815042035,-500.0,0.00013979,2]
[331883082,1720815042046,-500.0,0.00013979,2]
[331883084,1720815042055,-500.0,0.00013979,2]
[331883086,1720815042065,-500.0,0.00013979,2]
[331883088,1720815042075,-500.0,0.00013979,2]
[331883090,1720815042085,-500.0,0.00013979,2]
[331883092,1720815042094,-500.0,0.00013979,2]
[331883094,1720815042103,-312.38,0.00013979,2]
[331883096,1720815042112,-500.0,0.00013979,2]
[331883098,1720815042122,-500.0,0.00013979,2]
[331883100,1720815042131,-500.0,0.00013979,2]
[331883102,1720815042141,-500.0,0.00013979,2]
[331883104,1720815042151,-542.85,0.00013979,2]
[331883106,1720815042160,-531.23,0.00013979,2]
[331883108,1720815042170,-500.0,0.00013979,2]
[331883110,1720815042180,-685.56,0.00013979,2]
[331883112,1720815042189,-500.0,0.00013979,2]
[331883114,1720815042198,-500.0,0.00013979,2]
[331883116,1720815042207,-572.24240178,0.00013979,2]
[331883118,1720815042215,-500.0,0.00013979,2]
[331883119,1720815042225,-500.0,0.00013979,2]
[331883121,1720815042234,-500.0,0.00013979,2]
[331883123,1720815042244,-500.0,0.00013979,2]
[331883126,1720815042254,-500.0,0.00013979,2]
[331883127,1720815042264,-500.0,0.00013979,2]
[331883129,1720815042273,-599.78,0.00013979,2]
[331883132,1720815042283,-500.0,0.00013979,2]
[331883134,1720815042292,-512.69,0.00013979,2]
[331883135,1720815042301,-500.0,0.00013979,2]
[331883137,1720815042310,-500.0,0.00013979,2]
[331883140,1720815042320,-500.0,0.00013979,2]
[331883142,1720815042329,-570.78,0.00013979,2]
[331883144,1720815042338,-801.44,0.00013979,2]
[331883146,1720815042347,-500.0,0.00013979,2]
[331883148,1720815042357,-500.0,0.00013979,2]
[331883150,1720815042367,-500.0,0.00013979,2]
[331883152,1720815042377,-500.0,0.00013979,2]
[331883154,1720815042386,-500.0,0.00013979,2]
[331883156,1720815042395,-500.0,0.00013979,2]
[331883158,1720815042404,-500.0,0.00013979,2]
[331883160,1720815042413,-500.0,0.00013979,2]
[331883162,1720815042423,-500.0,0.00013979,2]
[331883164,1720815042433,-500.0,0.00013979,2]
[331883166,1720815042444,-500.0,0.00013979,2]
[331883168,1720815042454,-500.0,0.00013979,2]
[331883170,1720815042463,-500.0,0.00013979,2]
[331883172,1720815042472,-691.5,0.00013979,2]
[331883174,1720815042481,-383.832229,0.00013979,2]
[331883177,1720815042501,-116.167771,0.00013979,2]
[331883179,1720815042510,-500.0,0.00013979,2]
[331883181,1720815042519,-330.70735066,0.00013979,2]
[331883183,1720815042528,-500.0,0.00013979,2]
[331883185,1720815042538,-765.28,0.00013979,2]
[331883187,1720815042547,-500.0,0.00013979,2]
[331883189,1720815042556,-758.32,0.00013979,2]
[331883191,1720815042565,-500.0,0.00013979,2]
[331883193,1720815042574,-500.0,0.00013979,2]
[331883195,1720815042583,-529.3,0.00013979,2]
[331883197,1720815042592,-500.0,0.00013979,2]
[331883199,1720815042601,-500.0,0.00013979,2]
[331883201,1720815042611,-500.0,0.00013979,2]
[331883203,1720815042620,-500.0,0.00013979,2]
[331883205,1720815042631,-500.0,0.00013979,2]
[331883207,1720815042640,-500.0,0.00013979,2]
[331883209,1720815042649,-691.16,0.00013979,2]
[331883211,1720815042658,-500.0,0.00013979,2]
[331883213,1720815042668,-776.99,0.00013979,2]
[331883215,1720815042677,-500.0,0.00013979,2]
[331883217,1720815042686,-500.0,0.00013979,2]
[331883219,1720815042695,-500.0,0.00013979,2]
[331883231,1720815042806,-500.0,0.00013979,2]
[331883233,1720815042817,-500.0,0.00013979,2]
[331883235,1720815042827,-500.0,0.00013979,2]
[331883237,1720815042836,-545.75,0.00013979,2]
[331883239,1720815042846,-806.5,0.00013979,2]
[331883241,1720815042855,-500.0,0.00013979,2]
[331883243,1720815042865,-500.0,0.00013979,2]
[331883245,1720815042875,-500.0,0.00013979,2]
[331883247,1720815042884,-500.0,0.00013979,2]
[331883249,1720815042893,-553.01,0.00013979,2]
[331883251,1720815042903,-500.0,0.00013979,2]
[331883253,1720815042912,-500.0,0.00013979,2]
[331883255,1720815042922,-500.0,0.00013979,2]
[331883257,1720815042931,-500.0,0.00013979,2]
[331883260,1720815042941,-224.69965542,0.00013979,2]
[331883262,1720815042951,-500.0,0.00013979,2]
[331883264,1720815042960,-316.34,0.00013979,2]
[331883265,1720815042969,-500.0,0.00013979,2]
[331883267,1720815042978,-500.0,0.00013979,2]
[331883269,1720815042987,-500.0,0.00013979,2]
[331883271,1720815042999,-887.3,0.00013979,2]
[331883273,1720815043009,-500.0,0.00013979,2]
[331883275,1720815043019,-500.0,0.00013979,2]
[331883277,1720815043028,-500.0,0.00013979,2]
[331883279,1720815043038,-500.0,0.00013979,2]
[331883281,1720815043047,-500.0,0.00013979,2]
[331883283,1720815043056,-500.0,0.00013979,2]
[331883285,1720815043065,-500.0,0.00013979,2]
[331883288,1720815043078,-633.39025426,0.00013979,2]
[331883290,1720815043087,-500.0,0.00013979,2]
[331883291,1720815043096,-674.74,0.00013979,2]
[331883294,1720815043105,-500.0,0.00013979,2]
[331883295,1720815043115,-894.84,0.00013979,2]
[331883297,1720815043124,-500.0,0.00013979,2]
[331883299,1720815043133,-500.0,0.00013979,2]
[331883301,1720815043143,-684.27,0.00013979,2]
[331883303,1720815043151,-500.0,0.00013979,2]
[331883305,1720815043161,-500.0,0.00013979,2]
[331883307,1720815043170,-500.0,0.00013979,2]
[331883310,1720815043179,-500.0,0.00013979,2]
[331883312,1720815043189,-500.0,0.00013979,2]
[331883314,1720815043198,-500.0,0.00013979,2]
[331883316,1720815043207,-1700.36,0.00013979,2]
[331883318,1720815043217,-500.0,0.00013979,2]
[331883320,1720815043226,-659.77,0.00013979,2]
[331883323,1720815043236,-500.0,0.00013979,2]
[331883325,1720815043245,-500.0,0.00013979,2]
[331883326,1720815043255,-500.0,0.00013979,2]
[331883328,1720815043264,-500.0,0.00013979,2]
[331883330,1720815043273,-500.0,0.00013979,2]
[331883333,1720815043282,-500.0,0.00013979,2]
[331883336,1720815043291,-500.0,0.00013979,2]
[331883339,1720815043300,-500.0,0.00013979,2]
[331883341,1720815043309,-500.0,0.00013979,2]
[331883344,1720815043319,-500.0,0.00013979,2]
[331883347,1720815043328,-142.7009035,0.00013979,2]
[331883349,1720815043340,-357.2990965,0.00013979,2]
[331883351,1720815043349,-424.63410454,0.00013979,2]
[331883354,1720815043360,-75.36589546,0.00013979,2]
[331883355,1720815043390,-700.83,0.00013979,2]
[331883357,1720815043399,-500.0,0.00013979,2]
[331883359,1720815043409,-500.0,0.00013979,2]
[331883361,1720815043419,-500.0,0.00013979,2]
[331883363,1720815043428,-500.0,0.00013979,2]
[331883365,1720815043438,-500.0,0.00013979,2]
[331883367,1720815043447,-500.0,0.00013979,2]
[331883369,1720815043456,-500.0,0.00013979,2]